bitfinex/quotes_ETHUSD_20250823
["timestamp","ask_amount","ask_price","bid_price","bid_amount"]
[1755924892914,8.40146773,4747.7,4747.6,23.76054262]
[1755924893773,8.40146773,4747.7,4747.6,23.46984262]
[1755924894615,8.40146773,4747.7,4747.6,23.78004262]
[1755924896323,8.40146773,4747.7,4747.6,23.46984262]
[1755924900258,10.60675077,4747.7,4747.6,23.46984262]
[1755924900559,15.22844641,4747.7,4747.6,23.46984262]
[1755924900915,15.55811666,4747.7,4747.6,23.46984262]
[1755924901116,14.78024893,4747.7,4747.6,20.85920647]
[1755924901420,16.25750488,4747.2,4747.1,0.001]
[1755924901621,42.61770431,4747.2,4747.1,0.001]
[1755924901814,42.97481058,4747.2,4747.1,0.001]
[1755924902213,44.06158928,4747.2,4747.1,0.001]
[1755924903048,2.886,4746.5,4746.2,0.001]
[1755924903255,0.66,4746.7,4746.4,0.3102]
[1755924903546,3.826,4746.6,4746.4,0.3102]
[1755924903937,3.0,4746.5,4746.4,0.3102]
[1755924904135,3.826,4746.6,4746.4,0.3102]
[1755924904350,3.1056,4746.5,4746.4,0.3102]
[1755924904718,3.7656,4746.5,4746.4,0.7393]
[1755924906021,0.66,4746.4,4746.2,0.001]
[1755924906242,9.4155,4746.3,4746.2,0.001]
[1755924906422,16.4195,4746.3,4746.2,0.001]
[1755924906622,18.52640432,4746.3,4746.2,0.001]
[1755924907159,16.4195,4746.3,4746.2,0.001]
[1755924907945,18.52640432,4746.3,4746.2,0.001]
[1755924908458,18.98015853,4746.3,4746.2,0.001]
[1755924909168,21.35385853,4746.3,4746.2,0.001]
[1755924909327,23.43511787,4746.3,4746.2,0.001]
[1755924909522,23.43511787,4746.3,4745.3,0.001]
[1755924909523,6.2590819,4745.9,4745.3,0.001]
[1755924909720,41.0772696,4745.9,4745.3,0.001]
[1755924910022,41.34469185,4745.9,4745.3,0.001]
[1755924910332,41.42916885,4745.9,4745.3,0.001]
[1755924910530,41.42890007,4745.9,4745.3,0.001]
[1755924910949,41.75872067,4745.9,4745.3,0.001]
[1755924911319,41.64067576,4745.9,4745.3,0.001]
[1755924911932,40.37467576,4745.9,4745.3,0.001]
[1755924912335,40.94074465,4745.9,4745.3,0.001]
[1755924913328,40.37467576,4745.9,4745.3,0.001]
[1755924913533,40.17793425,4745.9,4745.3,0.001]
[1755924914027,40.67793425,4745.9,4745.3,0.001]
[1755924914232,40.17793425,4745.9,4745.3,0.001]
[1755924914439,40.67793425,4745.9,4745.3,0.001]
[1755924914850,40.17793425,4745.9,4745.3,0.001]
[1755924915069,40.67793425,4745.9,4745.3,0.001]
[1755924915353,40.87429675,4745.9,4745.3,0.001]
[1755924915857,41.44036564,4745.9,4745.3,0.001]
[1755924916361,41.44036564,4745.9,4744.4,0.001]
[1755924916362,2.76770365,4744.5,4744.4,0.001]
[1755924916561,18.14670365,4744.5,4744.4,0.001]
[1755924916743,18.25230365,4744.5,4744.4,0.001]
[1755924916942,18.45572417,4744.5,4744.4,0.001]
[1755924917144,18.78557959,4744.5,4744.4,0.001]
[1755924917358,18.45572417,4744.5,4744.4,0.001]
[1755924917554,18.90482417,4744.5,4744.4,0.001]
[1755924919462,19.05919906,4744.5,4744.4,0.001]
[1755924920868,19.51107237,4744.5,4744.4,0.001]
[1755924921369,19.05919906,4744.5,4744.4,0.001]
[1755924921670,0.66,4744.2,4743.9,0.001]
[1755924921868,0.66,4744.0,4743.9,0.001]
[1755924922055,3.66,4744.0,4743.9,0.001]
[1755924922365,4.45,4744.0,4743.9,0.7504]
[1755924922665,4.5556,4744.0,4743.9,0.7504]
[1755924924488,14.404,4744.0,4743.9,0.3025]
[1755924924649,14.404,4744.0,4743.9,0.7504]
[1755924924854,15.037735,4744.0,4743.9,0.7504]
[1755924925867,14.404,4744.0,4743.9,0.7504]
[1755924926498,7.45,4744.0,4743.9,0.7504]
[1755924927004,7.449,4744.0,4743.9,0.7504]
[1755924928072,7.449,4744.0,4743.9,0.3025]
[1755924928277,7.449,4744.0,4743.9,0.001]
[1755924928278,12.0836258,4744.0,4743.9,0.001]
[1755924929203,12.53681478,4744.0,4743.9,0.001]
[1755924929409,12.23611478,4744.0,4743.9,0.001]
[1755924930183,10.12818898,4744.0,4743.9,0.001]
[1755924930378,12.68401478,4744.0,4743.9,0.001]
[1755924931009,7.449,4744.0,4743.9,0.7504]
[1755924931223,3.0,4744.0,4743.9,0.7504]
[1755924931420,0.4479,4744.1,4743.9,0.7504]
[1755924931717,1.87979541,4744.5,4743.9,0.3025]
[1755924931718,4.435,4744.0,4743.9,0.3025]
[1755924931890,3.775,4744.0,4743.9,0.3025]
[1755924932296,4.435,4744.0,4743.9,0.7504]
[1755924932495,3.775,4744.0,4743.9,0.7504]
[1755924932713,4.435,4744.0,4743.9,0.7504]
[1755924933310,0.66,4744.0,4743.9,0.7504]
[1755924933512,4.432,4744.0,4743.9,0.7504]
[1755924934383,3.772,4744.0,4743.9,0.7504]
[1755924934596,3.8776,4744.0,4743.9,0.7504]
[1755924936897,0.1056,4744.0,4743.9,0.7504]
[1755924937102,3.8756,4744.0,4743.9,0.7504]
[1755924937599,0.1056,4744.0,4743.9,0.7504]
[1755924937790,0.58506644,4745.8,4743.9,0.7504]
[1755924937791,0.1056,4744.1,4743.9,0.7504]
[1755924937986,0.1056,4744.1,4744.0,0.4479]
[1755924938219,0.1056,4744.1,4744.0,0.7494]
[1755924950241,0.1056,4745.2,4744.0,0.855]
[1755924950414,0.1056,4745.2,4744.5,0.1056]
[1755924950609,0.1056,4745.2,4745.1,0.3032]
[1755924950840,0.1056,4745.2,4745.1,0.7731]
[1755924951248,0.002,4745.4,4745.1,0.7731]
[1755924951545,0.1056,4745.3,4745.2,0.4699]
[1755924951847,0.002,4745.4,4745.2,0.7731]
[1755924952212,0.002,4745.4,4745.3,0.49097348]
[1755924952419,0.002,4745.4,4745.3,0.79417348]
[1755924952748,0.002,4745.4,4745.3,0.7731]
[1755924954318,0.002,4745.4,4745.3,0.8987]
[1755924956615,0.002,4745.4,4745.3,0.7731]
[1755924956919,0.002,4745.4,4745.3,0.3032]
[1755924957118,0.002,4745.4,4745.3,0.7731]
[1755924958151,0.002,4745.4,4745.3,0.3032]
[1755924958453,0.002,4745.4,4744.8,0.1056]
[1755924958454,0.101,4745.4,4744.8,0.1056]
[1755924958855,1.62,4745.3,4744.8,0.1056]
[1755924959075,0.4105,4744.9,4744.6,0.1056]
[1755924959251,0.4105,4744.9,4744.0,0.001]
[1755924959421,3.743,4745.1,4744.8,0.3032]
[1755924959622,3.743,4745.1,4744.3,0.4699]
[1755924959854,0.1056,4744.4,4744.3,0.4699]
[1755924960352,0.1056,4744.4,4744.3,0.7731]
[1755924960954,1.62,4745.3,4744.3,0.7731]
[1755924961253,0.1056,4745.2,4744.5,0.1056]
[1755924961859,1.62,4745.3,4744.4,0.4699]
[1755924962062,0.1056,4744.8,4744.4,0.4699]
[1755924962264,0.1056,4744.8,4744.7,0.3032]
[1755924962929,0.1056,4744.8,4744.2,0.1056]
[1755924963152,0.1056,4744.3,4744.0,0.001]
[1755924964285,0.099,4744.1,4744.0,0.001]
[1755924964979,0.1056,4744.3,4744.0,0.001]
[1755924967366,3.743,4744.8,4744.2,0.3032]
[1755924967568,4.62,4745.3,4744.3,0.4699]
[1755924967569,1.62,4745.3,4744.3,0.4699]
[1755924967771,0.1056,4745.3,4745.2,0.3032]
[1755924968168,0.1056,4745.3,4745.2,0.7731]
[1755924968766,0.099,4745.3,4744.0,0.001]
[1755924969495,0.002,4745.4,4744.1,0.4699]
[1755924969669,0.002,4745.4,4744.2,0.02107836]
[1755924969874,0.002,4745.4,4744.0,0.001]
[1755924970074,0.002,4745.4,4744.1,0.4699]
[1755924970393,0.002,4745.4,4744.0,0.001]
[1755924970703,0.099,4744.1,4744.0,0.001]
[1755924971509,3.747,4744.5,4744.0,0.001]
[1755924971697,4.62,4744.6,4744.3,0.001]
[1755924972191,0.099,4744.4,4744.3,0.001]
[1755924974708,4.62,4744.6,4744.3,0.7741]
[1755924974709,5.363,4744.6,4744.3,0.7741]
[1755924975184,5.363,4744.6,4744.3,0.3042]
[1755924975384,5.363,4744.6,4744.4,0.4699]
[1755924975584,0.17658553,4745.8,4744.3,0.3042]
[1755924975585,3.743,4745.0,4744.5,0.7731]
[1755924975899,3.743,4745.0,4744.6,0.4699]
[1755924976275,1.621,4745.3,4744.9,0.3032]
[1755924976513,3.743,4745.6,4745.0,0.4699]
[1755924976719,0.02,4745.8,4745.0,0.4699]
[1755924976720,3.743,4745.7,4745.3,0.3032]
[1755924977315,3.743,4745.7,4745.3,0.7731]
[1755924978919,0.1076,4745.4,4745.3,0.7731]
[1755924979286,0.1076,4745.4,4745.3,0.3032]
[1755924979489,0.1076,4745.4,4744.8,0.4684]
[1755924980597,0.002,4745.4,4744.8,0.4684]
[1755924980799,0.1056,4744.9,4744.3,0.4694]
[1755924982223,0.1056,4744.9,4744.8,0.3127]
[1755924982423,0.002,4745.4,4744.8,0.7811]
[1755924982748,0.002,4745.4,4744.9,0.24011]
[1755924983019,0.002,4745.4,4745.3,0.3127]
[1755924983385,0.002,4745.4,4745.3,0.7811]
[1755924986295,0.002,4745.4,4745.3,0.86551]
[1755924992427,0.002,4745.4,4745.3,0.97111]
[1755924992612,0.002,4745.4,4745.3,1.382022]
[1755924993743,0.002,4745.4,4745.3,1.40309548]
[1755924994129,0.002,4745.4,4745.3,5.14409548]
[1755924994324,0.002,4745.4,4745.3,5.123022]
[1755924994557,0.002,4745.4,4745.3,0.600922]
[1755924994833,0.002,4745.4,4745.3,4.712109]
[1755924995832,0.002,4745.4,4745.3,0.971109]
[1755924996043,0.002,4745.4,4745.3,4.712109]
[1755924996831,0.002,4745.4,4745.3,0.971109]
[1755924997031,0.002,4745.4,4745.3,4.712109]
[1755924997231,0.002,4745.4,4745.3,5.2073309]
[1755924998366,0.002,4745.4,4745.3,0.9979309]
[1755924998673,0.002,4745.4,4745.3,4.712109]
[1755925003658,0.002,4745.4,4745.3,4.711109]
[1755925004800,0.02,4745.8,4745.4,3.0]
[1755925004957,0.02,4745.8,4745.7,0.9727]
[1755925005157,0.02,4745.8,4745.7,4.7127]
[1755925005380,0.02,4745.8,4745.7,3.582978]
[1755925005577,0.02,4745.8,4745.7,7.321978]
[1755925007118,0.02,4745.8,4745.7,2.922978]
[1755925007300,0.02,4745.8,4745.7,6.661978]
[1755925009920,0.02,4745.8,4745.7,2.922978]
[1755925010427,0.02,4745.8,4745.7,6.192578]
[1755925010794,0.02,4745.8,4745.7,5.879878]
[1755925011115,0.119,4745.8,4745.7,5.879878]
[1755925011678,0.02,4745.8,4745.7,2.141878]
[1755925011876,0.119,4745.8,4745.7,5.879878]
[1755925012082,0.119,4745.8,4745.7,3.738]
[1755925012702,0.02,4745.8,4745.7,4.0486]
[1755925012911,0.02,4745.8,4745.7,4.5315717]
[1755925013114,0.02,4745.8,4745.7,5.15516977]
[1755925013321,0.02,4745.8,4745.7,5.13409807]
[1755925013824,0.02,4745.8,4745.7,5.21850107]
[1755925014733,0.02,4745.8,4745.7,5.32410107]
[1755925015424,0.02,4745.8,4745.7,5.98410107]
[1755925015624,0.002,4746.4,4745.8,0.66]
[1755925015789,0.002,4746.4,4746.3,0.9706]
[1755925016122,0.002,4746.4,4746.3,7.8132]
[1755925016620,0.002,4746.4,4746.3,8.359481]
[1755925018015,0.002,4746.4,4746.3,8.253881]
[1755925018521,0.002,4746.8,4746.3,8.253881]
[1755925018725,0.002,4746.8,4746.5,0.66]
[1755925019026,0.002,4746.8,4746.7,0.9706]
[1755925019224,0.002,4746.8,4746.7,0.99166726]
[1755925019598,0.002,4746.8,4746.7,1.45356726]
[1755925020303,0.002,4746.8,4746.7,0.3106]
[1755925020510,0.002,4746.8,4746.7,6.0161859]
[1755925022314,0.002,4746.8,4746.7,2.2801859]
[1755925022514,0.002,4746.8,4746.7,6.0161859]
[1755925023146,0.002,4746.8,4746.7,6.0151859]
[1755925024850,0.002,4746.9,4746.8,0.66]
[1755925025047,0.002,4746.9,4746.8,2.37107806]
[1755925025212,0.002,4746.9,4746.8,2.83297806]
[1755925025408,0.002,4746.9,4746.8,6.56797806]
[1755925025637,0.002,4746.9,4746.8,6.54691124]
[1755925026252,0.002,4746.9,4746.8,9.63127924]
[1755925026952,0.002,4747.3,4746.8,9.63127924]
[1755925027110,0.002,4747.3,4747.2,0.66]
[1755925027312,0.002,4747.3,4747.2,4.7046]
[1755925027517,0.002,4747.3,4747.2,5.1665]
[1755925027712,0.002,4747.3,4747.2,5.250859]
[1755925027926,0.002,4747.3,4747.2,5.356459]
[1755925028130,0.002,4747.3,4747.2,7.498337]
[1755925028331,0.002,4747.3,4747.2,16.72219895]
[1755925029330,0.002,4747.3,4747.2,19.72219895]
[1755925030622,0.02,4748.8,4747.4,0.66]
[1755925030821,0.02,4748.8,4747.7,9.53446195]
[1755925031020,0.02,4748.8,4747.7,13.37306195]
[1755925031021,0.3843,4748.8,4747.7,13.37306195]
[1755925031235,0.3843,4748.8,4747.7,13.73736195]
[1755925031846,0.3843,4748.8,4747.7,14.19926195]
[1755925033354,0.3843,4748.8,4747.7,13.73736195]
[1755925033530,0.3843,4748.8,4747.7,15.83337594]
[1755925033860,0.3843,4748.8,4747.7,12.10037594]
[1755925034060,0.3843,4748.8,4747.7,15.52177594]
[1755925036145,0.3843,4748.8,4747.7,18.83237594]
[1755925036146,0.02,4748.8,4747.7,18.83237594]
[1755925036350,0.02,4748.8,4747.7,15.56227594]
[1755925036549,0.02,4748.8,4747.7,19.29427594]
[1755925037083,0.02,4748.8,4747.7,18.83237594]
[1755925037374,0.3643,4748.6,4747.7,11.78977594]
[1755925037741,0.3643,4748.6,4747.7,15.52077594]
[1755925038073,0.02,4748.8,4747.7,0.4699]
[1755925038074,0.119,4747.8,4747.7,0.4699]
[1755925038243,0.4806,4747.8,4747.7,3.8366]
[1755925039179,0.119,4747.8,4747.7,3.8366]
[1755925039545,0.121,4747.8,4747.7,3.8366]
[1755925040481,0.4826,4747.8,4747.7,3.8366]
[1755925042479,0.3106,4747.8,4747.7,3.85766283]
[1755925043655,0.3106,4747.8,4747.7,0.1056]
[1755925043974,0.3106,4747.8,4747.7,3.8356]
[1755925044452,0.3106,4747.8,4747.7,0.1056]
[1755925044781,0.3106,4747.8,4747.7,0.12666283]
[1755925044956,0.3106,4747.8,4747.7,3.8346]
[1755925045558,0.3106,4747.8,4747.7,0.1056]
[1755925045743,0.3106,4747.8,4747.7,3.8346]
[1755925047744,0.3106,4747.8,4747.7,4.1452]
[1755925049065,0.3106,4747.8,4747.7,0.43726283]
[1755925049273,0.3106,4747.8,4747.7,4.16526283]
[1755925050857,0.3106,4747.8,4747.7,4.1442]
[1755925051689,0.3106,4747.8,4747.7,0.3106]
[1755925051894,0.418,4747.8,4747.7,4.0386]
[1755925052188,0.418,4747.8,4747.7,4.0376]
[1755925053384,0.418,4747.8,4747.7,0.3106]
[1755925053758,0.418,4747.8,4747.7,4.0376]
[1755925053959,0.418,4747.8,4747.7,0.3106]
[1755925056565,0.318,4747.8,4747.7,0.3106]
[1755925059370,0.3162,4747.8,4747.7,0.3106]
[1755925063283,0.1056,4747.8,4747.7,0.3106]
[1755925069412,0.1291,4747.8,4747.7,0.3106]
[1755925069614,0.1056,4747.8,4747.7,0.3106]
[1755925070214,0.1291,4747.8,4747.7,0.3106]
[1755925070789,0.4128,4747.8,4747.2,3.722]
[1755925070993,0.0235,4747.8,4747.4,0.2837]
[1755925071220,0.0235,4747.8,4746.8,1.619]
[1755925071221,0.2837,4747.7,4746.8,1.619]
[1755925071423,0.1317,4746.9,4746.5,3.722]
[1755925071638,0.1317,4746.9,4746.6,0.633023]
[1755925071918,0.1317,4746.9,4746.3,0.4701]
[1755925071919,0.1317,4746.9,4746.3,4.1921]
[1755925072124,0.1317,4746.9,4746.4,0.633052]
[1755925072325,0.1056,4746.9,4746.5,0.4691]
[1755925072721,0.2811,4747.5,4746.3,3.723]
[1755925072952,0.1056,4746.4,4746.3,3.723]
[1755925073103,0.1056,4746.4,4746.3,4.5048]
[1755925073439,0.1056,4746.4,4746.3,0.7828]
[1755925074833,0.1056,4746.4,4746.3,0.3137]
[1755925075234,0.1056,4746.4,4746.3,0.7828]
[1755925079512,0.1056,4746.4,4746.3,4.5028]
[1755925079907,0.1056,4746.4,4746.3,0.3137]
[1755925080110,0.1056,4746.4,4746.3,0.001]
[1755925080309,0.1056,4746.4,4746.3,3.721]
[1755925080711,0.1056,4746.4,4746.3,0.001]
[1755925080917,0.1056,4746.4,4746.3,0.634091]
[1755925080918,0.2046,4746.4,4746.3,0.634091]
[1755925081687,0.2046,4746.4,4746.3,0.001]
[1755925083164,0.1056,4746.4,4746.3,0.3137]
[1755925083332,0.1056,4746.4,4746.3,0.7828]
[1755925084247,0.1056,4746.4,4746.3,0.3137]
[1755925084826,0.1056,4746.4,4746.3,0.001]
[1755925086357,0.1056,4746.4,4746.3,0.634091]
[1755925088042,0.1056,4746.4,4746.3,0.946791]
[1755925088376,0.1056,4746.4,4746.3,1.415891]
[1755925090781,0.04,4746.8,4746.3,1.69365427]
[1755925091074,0.04,4746.8,4746.7,0.1056]
[1755925091242,0.04,4746.8,4746.7,0.4183]
[1755925091445,0.04,4746.8,4746.7,0.8874]
[1755925091779,0.04,4746.8,4746.5,3.716]
[1755925091981,0.04,4746.8,4746.7,0.1056]
[1755925092168,0.0429,4746.8,4746.7,0.1056]
[1755925093062,0.0429,4746.8,4746.4,3.716]
[1755925093260,0.1056,4746.7,4746.4,0.2835]
[1755925093461,0.099,4746.5,4746.4,0.2835]
[1755925093846,0.1056,4746.7,4746.4,0.2835]
[1755925096065,0.1056,4746.7,4746.6,0.3127]
[1755925096797,0.1056,4746.7,4746.6,0.7818]
[1755925097102,0.2046,4746.7,4746.3,0.001]
[1755925097288,0.1056,4746.4,4746.3,0.001]
[1755925097466,0.1056,4746.4,4746.3,0.7828]
[1755925099216,0.04,4746.8,4746.3,0.7828]
[1755925099217,0.1056,4746.5,4746.3,0.7828]
[1755925099376,0.1056,4746.5,4746.4,0.46976859]
[1755925099706,0.1056,4746.5,4746.4,0.76556859]
[1755925100111,0.1056,4746.7,4746.4,0.76556859]
[1755925100271,0.04,4746.8,4746.4,0.76556859]
[1755925100272,0.04,4746.8,4746.5,4.1617]
[1755925100469,0.04,4746.8,4746.7,0.4014]
[1755925100865,0.04,4746.8,4746.7,0.8501]
[1755925101071,0.04,4746.8,4746.7,0.9557]
[1755925101271,0.04,4746.8,4746.7,2.55470588]
[1755925101587,0.04,4746.8,4746.7,6.26770588]
[1755925104923,0.04,4746.8,4746.7,6.26570588]
[1755925109313,0.04,4746.8,4746.7,6.26370588]
[1755925110104,0.04,4746.8,4746.7,2.55470588]
[1755925110301,0.04,4746.8,4746.7,2.57577314]
[1755925110508,0.04,4746.8,4746.7,6.28477314]
[1755925110824,0.04,4746.8,4746.7,6.26370588]
[1755925113828,0.04,4746.8,4746.7,6.92370588]
[1755925116730,0.04,4746.8,4746.7,3.21470588]
[1755925116924,0.04,4746.8,4746.7,6.92070588]
[1755925121434,0.04,4746.8,4746.7,3.21470588]
[1755925121635,0.04,4746.8,4746.7,6.91870588]
[1755925123938,0.04,4746.8,4746.7,3.21470588]
[1755925124138,0.04,4746.8,4746.7,6.91770588]
[1755925124829,0.002,4747.8,4746.8,0.66]
[1755925125030,0.002,4747.8,4747.7,9.32946195]
[1755925125218,0.002,4747.8,4747.7,14.65146195]
[1755925125219,0.101,4747.8,4747.7,14.65146195]
[1755925125416,0.101,4747.8,4747.7,14.93776195]
[1755925125626,0.101,4747.8,4747.7,5.7139]
[1755925126119,0.101,4747.8,4747.7,5.7129]
[1755925127225,0.101,4747.8,4747.7,2.0109]
[1755925127430,0.101,4747.8,4747.7,5.7129]
[1755925128907,0.101,4747.8,4747.7,7.00156121]
[1755925129545,0.002,4747.8,4747.7,7.00156121]
[1755925130230,0.022,4747.8,4747.7,7.00156121]
[1755925133528,0.022,4747.8,4747.7,3.29956121]
[1755925133755,0.0249,4747.8,4747.7,7.01962404]
[1755925133940,0.0249,4747.8,4747.7,6.99856121]
[1755925134461,0.022,4747.8,4747.7,6.99856121]
[1755925134760,0.022,4747.8,4747.7,7.29326121]
[1755925134961,0.022,4747.8,4747.7,4.05716121]
[1755925135131,0.022,4747.8,4747.7,7.75616121]
[1755925135329,0.022,4747.8,4747.7,7.65056121]
[1755925135527,0.022,4747.8,4747.7,7.75616121]
[1755925136227,0.3083,4747.8,4747.7,6.99856121]
[1755925136452,0.3083,4747.8,4747.7,5.7099]
[1755925136831,0.3083,4747.8,4747.7,2.0109]
[1755925137030,0.3083,4747.8,4747.7,5.7089]
[1755925137228,0.3083,4747.8,4747.7,2.0109]
[1755925137471,0.3083,4747.8,4747.7,5.7089]
[1755925138749,0.3083,4747.8,4747.7,2.0109]
[1755925139064,0.3083,4747.8,4747.7,5.7089]
[1755925139361,0.3083,4747.8,4747.7,2.0109]
[1755925139663,0.3083,4747.8,4747.7,5.7079]
[1755925140340,0.3083,4747.8,4747.7,2.0109]
[1755925140550,0.3083,4747.8,4747.7,5.6013]
[1755925141649,0.3083,4747.8,4747.7,5.896]
[1755925141650,0.022,4747.8,4747.7,5.896]
[1755925141870,0.022,4747.8,4747.7,7.8708862]
[1755925142039,0.022,4747.8,4747.7,8.5308862]
[1755925145847,0.022,4747.8,4747.7,8.76444761]
[1755925146857,0.002,4748.3,4747.8,0.66]
[1755925147068,0.002,4748.3,4748.2,9.51856195]
[1755925147270,0.02,4748.8,4748.2,9.51856195]
[1755925147271,0.02,4748.8,4748.3,0.66]
[1755925147492,0.02,4748.8,4748.7,10.17856195]
[1755925147657,0.02,4748.8,4748.7,15.49056195]
[1755925147856,0.02,4748.8,4748.7,15.95346195]
[1755925151004,0.02,4749.8,4748.8,0.66]
[1755925151141,0.02,4749.8,4749.7,0.9547]
[1755925151340,0.02,4749.8,4749.7,5.6057]
[1755925151540,0.022,4749.8,4749.7,6.39557808]
[1755925151809,0.022,4749.8,4749.7,7.820467]
[1755925151968,0.022,4749.8,4749.7,7.357567]
[1755925152380,0.022,4749.8,4749.7,3.370867]
[1755925152565,0.121,4749.8,4749.7,3.370867]
[1755925152768,0.121,4749.8,4749.7,7.061867]
[1755925153072,0.022,4749.8,4749.7,3.665567]
[1755925153472,0.022,4749.8,4749.7,7.061867]
[1755925153880,0.022,4749.8,4749.7,3.370867]
[1755925154268,0.022,4749.8,4749.7,7.819467]
[1755925154880,0.022,4749.8,4749.7,7.818467]
[1755925155673,0.022,4749.8,4749.7,7.355567]
[1755925156664,0.022,4749.8,4749.7,7.060867]
[1755925156857,0.022,4749.8,4749.7,3.370867]
[1755925157052,0.022,4749.8,4749.7,7.059867]
[1755925157254,0.022,4749.8,4749.7,8.477467]
[1755925157559,0.022,4749.8,4749.7,8.80444508]
[1755925157782,0.022,4749.8,4749.7,5.11544508]
[1755925158490,0.022,4749.8,4749.7,8.476467]
[1755925158855,0.022,4749.8,4749.7,4.788467]
[1755925159056,0.022,4749.8,4749.7,8.476467]
[1755925159264,0.022,4749.8,4749.7,8.80344508]
[1755925160851,0.022,4749.8,4749.7,5.11544508]
[1755925161103,0.022,4749.8,4749.7,8.80344508]
[1755925161951,0.022,4749.8,4749.7,8.80244508]
[1755925163182,0.022,4749.8,4749.7,5.11544508]
[1755925163504,0.022,4749.8,4749.7,8.80244508]
[1755925164267,0.022,4749.8,4749.7,7.67854508]
[1755925164467,0.022,4749.8,4749.7,7.346467]
[1755925164886,0.022,4749.8,4749.7,8.77654508]
[1755925165390,0.022,4749.8,4749.7,3.98744508]
[1755925165589,0.022,4749.8,4749.7,15.77846303]
[1755925168493,0.00943235,4750.0,4749.7,15.77846303]
[1755925168494,0.002,4750.3,4749.8,0.66]
[1755925168680,0.002,4750.3,4750.2,9.61906195]
[1755925168894,0.002,4750.3,4750.2,13.63104003]
[1755925169210,0.002,4750.3,4750.2,15.33845403]
[1755925169505,0.002,4750.3,4750.2,15.04885403]
[1755925169676,0.2583,4751.1,4750.2,14.94325403]
[1755925169872,0.2583,4751.1,4751.0,0.1056]
[1755925170085,0.3573,4751.1,4751.0,3.7896]
[1755925170613,0.099,4751.1,4751.0,4.1469]
[1755925171320,0.1056,4751.9,4751.0,5.9564244]
[1755925171486,0.1056,4751.9,4751.3,9.22386195]
[1755925171848,0.3158,4751.4,4751.3,9.22386195]
[1755925172324,0.2583,4752.5,4751.3,9.32946195]
[1755925172491,0.2583,4752.3,4751.7,0.1056]
[1755925172687,0.1113,4751.8,4751.7,3.7896]
[1755925173102,0.1113,4751.8,4751.7,0.1056]
[1755925173304,0.1113,4751.8,4751.7,3.7886]
[1755925174683,0.1113,4751.8,4751.7,4.045]
[1755925176022,0.04,4751.8,4751.7,4.045]
[1755925176197,0.1113,4751.8,4751.7,4.045]
[1755925176601,0.04,4751.8,4751.7,4.045]
[1755925176813,0.1113,4751.8,4751.7,4.045]
[1755925177835,0.1113,4751.8,4751.7,0.362]
[1755925178120,0.1113,4751.8,4751.7,4.044]
[1755925179303,0.1113,4751.8,4751.7,4.043]
[1755925180398,0.04,4751.8,4751.7,5.3696862]
[1755925180815,0.04,4751.8,4751.7,5.6592862]
[1755925181042,0.04,4751.8,4751.7,6.1023862]
[1755925181447,0.1113,4751.8,4751.7,5.3696862]
[1755925181727,0.04,4751.8,4751.7,5.3696862]
[1755925181932,0.1113,4751.8,4751.7,0.362]
[1755925182106,0.1113,4751.8,4751.7,4.043]
[1755925187831,0.04,4751.8,4751.7,4.3326]
[1755925188141,0.04,4751.8,4751.7,4.043]
[1755925188350,0.042,4751.8,4751.7,4.49161]
[1755925189419,0.042,4751.8,4751.7,14.46071704]
[1755925189637,0.042,4751.8,4751.7,5.21581]
[1755925190161,0.042,4751.8,4751.7,0.81061]
[1755925190437,0.042,4751.8,4751.7,5.23385509]
[1755925190643,0.042,4751.8,4751.7,5.21281]
[1755925194440,0.042,4751.8,4751.7,5.87281]
[1755925194639,0.042,4751.8,4751.7,6.19978808]
[1755925195516,0.042,4751.8,4751.7,6.35512982]
[1755925195858,0.042,4751.8,4751.7,6.19878808]
[1755925196412,0.042,4751.8,4751.7,6.19778808]
[1755925196718,0.042,4751.8,4751.7,2.52178808]
[1755925196923,0.042,4751.8,4751.7,6.19778808]
[1755925197238,0.042,4751.8,4751.7,5.53778808]
[1755925197856,0.042,4751.8,4751.7,8.53778808]
[1755925198342,0.042,4751.8,4751.7,9.19778808]
[1755925198545,0.042,4751.8,4751.7,1.86178808]
[1755925198743,0.042,4751.8,4751.7,14.43467195]
[1755925198944,0.042,4751.8,4751.7,10.75867195]
[1755925199249,0.042,4751.8,4751.7,14.43467195]
[1755925199617,0.042,4751.8,4751.7,14.43367195]
[1755925200154,0.042,4751.8,4751.7,13.70947195]
[1755925200309,0.141,4751.8,4751.7,13.70947195]
[1755925200516,0.042,4751.8,4751.7,14.43367195]
[1755925200943,0.042,4751.8,4751.7,14.76065003]
[1755925204361,0.042,4751.8,4751.7,11.08565003]
[1755925204538,0.043,4751.8,4751.7,4.48461]
[1755925204744,0.043,4751.8,4751.7,0.81061]
[1755925205263,0.042,4751.8,4751.7,4.50565509]
[1755925206057,0.043,4751.8,4751.7,4.48461]
[1755925206642,0.043,4751.8,4751.7,0.362]
[1755925206862,0.141,4751.8,4751.7,3.673]
[1755925207365,0.141,4751.8,4751.3,0.1056]